lending/lending_fUSD_20250516
["ID","MTS","AMOUNT","RATE_DAILY","PERIOD"]
[361231858,1747373445904,-4117.41467043,0.00013,2]
[361231885,1747373446499,-0.17244806,0.00013,2]
[361231889,1747373446525,-30074.61415518,0.00013,2]
[361231894,1747373446561,-393.87375918,0.00013,2]
[361231897,1747373446577,-41623.55833154,0.00013,2]
[361231899,1747373446588,-1435.71016166,0.00013,2]
[361232574,1747373474242,-185.54481604,0.0001,2]
[361232575,1747373485098,-250.0,0.0001,2]
[361232576,1747373486634,-14.45518396,0.0001,2]
[361232581,1747374116589,-184.50459213,9.942e-05,2]
[361232582,1747374119146,-178.2163816,9.942e-05,2]
[361232583,1747374127958,-249.43243225,9.942e-05,2]
[361232584,1747374130023,-247.35971502,9.942e-05,2]
[361232585,1747374133074,-154.27,9.942e-05,2]
[361232586,1747374134804,-157.1270909,9.942e-05,2]
[361232587,1747374136231,-232.73427422,9.942e-05,2]
[361232588,1747374138315,-244.2573788,9.942e-05,2]
[361232589,1747374141090,-78.27813508,9.942e-05,2]
[361232590,1747374296577,150.0,0.00011789,7]
[361232591,1747374448095,-291.930962,0.00011599,2]
[361232592,1747374448117,-222.03702636,0.00011638,2]
[361232593,1747374546241,236.51348752,0.00027,120]
[361232601,1747374631931,-183.22657255,0.00011588,2]
[361232602,1747374631941,-212.18473163,0.00011634,2]
[361232603,1747374632044,-213.17526837,0.00011634,2]
[361232604,1747374632054,-777.96297364,0.00011638,2]
[361232605,1747374632063,-7.37964065,0.00011658,2]
[361232606,1747374632102,-242.62035935,0.00011658,2]
[361232607,1747374632111,-150.0,0.00011688,2]
[361232608,1747374632122,-150.0,0.00011688,2]
[361232609,1747374632132,-150.0,0.00011688,2]
[361232610,1747374632141,-150.00000001,0.00011688,2]
[361232611,1747374632150,-450.32964065,0.00011703,2]
[361232612,1747374632162,-812.19035935,0.00011703,2]
[361232613,1747374632171,-96.65494655,0.00011804,2]
[361232614,1747374632183,-1103.34505345,0.00011804,2]
[361232615,1747374632192,-300.0,0.00011805,2]
[361232616,1747374632201,-300.0,0.00011805,2]
[361232617,1747374632211,-187.03299306,0.00011806,2]
[361232618,1747374632226,-19357.55700694,0.00011806,2]
[361232619,1747374632235,-150.0,0.0001185,2]
[361232620,1747374632245,-250.0,0.00011893,2]
[361232621,1747374632254,-161.29,0.00011948,2]
[361232622,1747374632263,-500.0,0.00012,2]
[361232623,1747374632273,-522.72,0.00012007,2]
[361232624,1747374632282,-150.0,0.00012012,2]
[361232625,1747374632291,-150.0,0.00012012,2]
[361232626,1747374632300,-175.1,0.00012033,2]
[361232627,1747374632309,-150.0,0.00012175,2]
[361232628,1747374632318,-150.0,0.00012192,2]
[361232629,1747374632327,-150.0,0.000122,2]
[361232630,1747374632336,-1726.18,0.00012206,2]
[361232631,1747374632345,-150.0,0.000123,2]
[361232632,1747374632354,-353.05,0.000123,2]
[361232633,1747374632364,-327.2,0.000123,2]
[361232634,1747374632373,-150.0,0.000123,2]
[361232635,1747374632382,-150.0,0.000123,2]
[361232636,1747374632391,-353.05,0.000123,2]
[361232637,1747374632400,-150.0,0.000123,2]
[361232638,1747374632410,-1000.0,0.000123,4]
[361232639,1747374632420,-150.0,0.00012337,2]
[361232640,1747374632429,-150.0,0.00012337,2]
[361232641,1747374632438,-705.44,0.000124,2]
[361232642,1747374632447,-150.87,0.000124,2]
[361232643,1747374632457,-150.0,0.000124,2]
[361232644,1747374632466,-300.24,0.000124,2]
[361232645,1747374632475,-150.58,0.000124,2]
[361232646,1747374632484,-353.05,0.000124,2]
[361232647,1747374632493,-437.07,0.000124,2]
[361232648,1747374632503,-2100.0,0.000124,4]
[361232649,1747374632513,-207.4,0.00012493,2]
[361232650,1747374632523,-1000.0,0.00012493,2]
[361232651,1747374632532,-150.0,0.00012499,2]
[361232652,1747374632542,-696.77,0.000125,2]
[361232653,1747374632551,-1156.61,0.000125,2]
[361232654,1747374632560,-3200.0,0.000125,4]
[361232655,1747374632569,-1608.64,0.00012569,2]
[361232656,1747374632578,-1563.0,0.00012569,2]
[361232657,1747374632587,-925.42,0.00012569,2]
[361232658,1747374632597,-457.61,0.00012569,2]
[361232659,1747374632606,-4200.0,0.000126,4]
[361232660,1747374632615,-150.0,0.00012662,2]
[361232661,1747374632624,-150.0,0.00012662,2]
[361232662,1747374632635,-183.22657255,0.0001267,2]
[361232663,1747374632644,-1702.0,0.000127,2]
[361232664,1747374632653,-5300.0,0.000127,4]
[361232665,1747374632663,-200.0,0.00012747,2]
[361232666,1747374632672,-250.0,0.00012747,2]
[361232667,1747374632682,-226.7928,0.0001277,2]
[361232668,1747374632691,-317.6477,0.0001277,2]
[361232669,1747374632700,-200.0,0.00012792,2]
[361232670,1747374632710,-250.0,0.00012792,2]
[361232671,1747374632719,-1000.0,0.000128,4]
[361232672,1747374632728,-150.0,0.00012824,2]
[361232673,1747374632737,-1000.0,0.00012861,2]
[361232674,1747374632747,-151.0,0.00012862,2]
[361232675,1747374632756,-152.51427846,0.00012862,2]
[361232676,1747374632765,-155.0,0.00012862,2]
[361232677,1747374632774,-845.52807468,0.00012862,2]
[361232678,1747374632783,-668.65185757,0.00012862,2]
[361232679,1747374632792,-156.80306497,0.00012862,2]
[361232680,1747374632801,-151.0,0.00012862,2]
[361232681,1747374632810,-348.49810453,0.00012869,2]
[361232682,1747374632819,-500.0,0.00012869,2]
[361232683,1747374632829,-88857.43233016,0.0001287,2]
[361232684,1747374632838,-352.19,0.00012877,2]
[361232685,1747374632847,-554.11288335,0.00012899,2]
[361232686,1747374632856,-2242.041,0.000129,2]
[361232687,1747374632865,-267.35184579,0.000129,2]
[361232688,1747374632874,-392.0586,0.000129,2]
[361232689,1747374632886,-1299.204,0.000129,2]
[361232690,1747374632895,-153.15393315,0.000129,2]
[361232691,1747374632904,-1000.0,0.000129,4]
[361232692,1747374632916,-331.54036079,0.000129,2]
[361232693,1747374632925,-256.3555231,0.000129,2]
[361232694,1747374632935,-443.26120926,0.000129,2]
[361232695,1747374632944,-533.01973866,0.000129,2]
[361232696,1747374632953,-197.0,0.000129,2]
[361232697,1747374632962,-197.0,0.000129,2]
[361232698,1747374632971,-53.6979966,0.000129,2]
[361232699,1747374637938,-2849.31,0.000116,2]
[361232700,1747374637948,-792.29303,0.000129,2]
[361232701,1747374638051,-33.56636051,0.000129,2]
[361232702,1747374638061,-198.51,0.000129,3]
[361232703,1747374638071,-200.845898,0.000129,2]
[361232704,1747374638081,-1207.51774149,0.00012909,2]
[361232705,1747374638092,-513.69361073,0.00012909,2]
[361232706,1747374638115,-2281.87364935,0.00012909,2]
[361232707,1747374638166,-4887.00638255,0.00012909,2]
[361232708,1747374638178,-3918.12635065,0.00012909,2]
[361232710,1747374640108,-15783.64694189,0.00012909,2]
[361232711,1747374640118,-706.8587687,0.00012934,2]
[361232712,1747374640128,-420.0,0.00012962,2]
[361232713,1747374640138,-420.0,0.00012962,2]
[361232714,1747374640147,-500.0,0.00012973,2]
[361232715,1747374640157,-500.0,0.00012973,2]
[361232716,1747374640168,-1305.0,0.00012984,2]
[361232717,1747374640177,-150.0,0.00012986,2]
[361232718,1747374640186,-150.0,0.00012986,2]
[361232719,1747374640196,-150.0,0.00012986,2]
[361232720,1747374640207,-191.68739529,0.00012995,2]
[361232721,1747374640216,-500.0,0.00012995,2]
[361232722,1747374640226,-188.49246692,0.00012995,2]
[361232723,1747374640236,-500.0,0.00012995,2]
[361232724,1747374640246,-500.0,0.00012995,2]
[361232725,1747374640256,-500.0,0.00012995,2]
[361232726,1747374640265,-299.73593199,0.00012995,2]
[361232727,1747374640274,-500.0,0.00012995,2]
[361232728,1747374640283,-500.0,0.00012995,2]
[361232729,1747374640293,-500.0,0.00012995,2]
[361232730,1747374640302,-5159.4794579,0.00012996,2]
[361232731,1747374640311,-137613.4325637,0.00012996,2]
[361232732,1747374640320,-12168.3018438,0.00012996,2]
[361232733,1747374640330,-119919.2136136,0.00013,2]
[361232734,1747374640339,-296509.13015043,0.00013,2]
[361232735,1747374640495,-20872.43340097,0.00013,2]
[361232736,1747374640517,-964.25751641,0.00013,2]
[361232738,1747374643224,-7807.29397427,0.00013,2]
[361232739,1747374643390,-6958.33774621,0.00013,2]
[361232833,1747374646050,-1911.0,0.00013,2]
[361232834,1747374646062,-2195.572128,0.00013,2]
[361232835,1747374646073,-530.04925782,0.00013,2]
[361232836,1747374646265,-1528.87515665,0.00013,2]
[361232837,1747374646292,-5443.9824756,0.00013,2]
[361232838,1747374646304,-5330.8,0.00013,2]
[361232839,1747374646385,-8153.96839183,0.00013,2]
[361232846,1747375202676,3244.39,0.00012849,14]
[361232847,1747375206481,1582.32,9.641e-05,2]
[361232848,1747375297159,-168.47132671,0.0001,2]
[361232849,1747375334418,150.0,0.00011488,7]
[361232850,1747375593973,1000.0,0.00022191,120]
[361232851,1747375594083,1000.0,0.00022191,120]
[361232852,1747375594285,1000.0,0.00022191,120]
[361232853,1747375594466,1000.0,0.00022191,120]
[361232854,1747375594722,1000.0,0.00022191,120]
[361232855,1747375595333,1000.0,0.00022191,120]
[361232856,1747375595560,1000.0,0.00022191,120]
[361232857,1747375595800,1000.0,0.00022191,120]
[361232858,1747375596052,1000.0,0.00022191,120]
[361232859,1747375596320,1000.0,0.00022191,120]
[361232860,1747375596578,1000.0,0.00022191,120]
[361232861,1747375596835,1000.0,0.00022191,120]
[361232862,1747375597111,1000.0,0.00022191,120]
[361232863,1747375597328,1000.0,0.00022191,120]
[361232864,1747375597558,1000.0,0.00022191,120]
[361232865,1747375597798,1000.0,0.00022191,120]
[361232866,1747375598050,1000.0,0.00022191,120]
[361232867,1747375598662,1000.0,0.00022191,120]
[361232868,1747375598891,1000.0,0.00022191,120]
[361232869,1747375599163,1000.0,0.00022191,120]
[361232870,1747375599749,1000.0,0.00022191,120]
[361232871,1747375600855,1000.0,0.00022191,120]
[361232872,1747375600927,1000.0,0.00022465,120]
[361232873,1747375601059,630.91737232,0.00022739,120]
[361232882,1747375832182,-281.52867329,0.0001,2]
[361232891,1747375832696,-176.330591,0.00010687,2]
[361232892,1747375832707,-4980.97848528,0.00010795,2]
[361232893,1747375832716,-2314.0,0.00010939,2]
[361232894,1747375832726,-1200.0,0.00010994,2]
[361232895,1747375832736,-300.0,0.00010995,2]
[361232896,1747375832745,-164.478302,0.00010996,2]
[361232897,1747375832754,-151.152192,0.00010996,2]
[361232898,1747375832764,-1412.66423267,0.00010996,2]
[361232899,1747375832837,-5008.53813225,0.00010996,2]
[361232900,1747375832850,-1208.89617208,0.00010996,2]
[361232901,1747375832859,-919.116381,0.00010996,2]
[361232902,1747375832869,-1921.98744692,0.00010998,2]
[361232903,1747375832880,-3529.05961605,0.00010998,2]
[361232904,1747375832908,-576.25726264,0.00010998,2]
[361232905,1747375832986,-1602.79421139,0.00010998,2]
[361232906,1747375832996,-1857.39018305,0.00010998,2]
[361232907,1747375833007,-5772.70835395,0.00010998,2]
[361232908,1747375833017,-919.116381,0.00010998,2]
[361232909,1747375833026,-5858.05996417,0.00010998,2]
[361232910,1747375833226,-1772.03857283,0.00010998,2]
[361232911,1747375833236,-919.116381,0.00010998,2]
[361232912,1747375833246,-919.116381,0.00010998,2]
[361232913,1747375833256,-200.0,0.00011,2]
[361232914,1747375833267,-2289.72866507,0.00011034,2]
[361232915,1747375833279,-247.78133493,0.00011034,2]
[361232916,1747375833288,-500.0,0.00011061,2]
[361232917,1747375833298,-500.0,0.00011061,2]
[361232918,1747375833307,-500.0,0.00011061,2]
[361232919,1747375833317,-500.0,0.00011061,2]
[361232920,1747375833327,-500.0,0.00011061,2]
[361232921,1747375833336,-500.0,0.00011061,2]
[361232922,1747375833347,-440.99232062,0.00011061,2]
[361232923,1747375833356,-500.0,0.00011061,2]
[361232924,1747375833366,-500.0,0.00011061,2]
[361232925,1747375833376,-500.0,0.00011061,2]
[361232926,1747375833386,-500.0,0.00011061,2]
[361232927,1747375833397,-191.22634445,0.00011061,2]
[361232928,1747375833409,-308.77365555,0.00011061,2]
[361232929,1747375833419,-500.0,0.00011061,2]
[361232930,1747375833429,-500.0,0.00011061,2]
[361232931,1747375833439,-500.0,0.00011061,2]
[361232932,1747375833449,-168.15519269,0.00011061,2]
[361232933,1747375833460,-1573.07115676,0.00011062,2]
[361232934,1747375833474,-1300.0,0.00011062,2]
[361232935,1747375833523,-421.81449826,0.00011062,2]
[361232936,1747375833534,-35870.52300598,0.00011062,2]
[361232937,1747375833547,-7503.62901673,0.00011062,2]
[361232938,1747375833656,-3226.15232227,0.00011062,2]
[361232939,1747375833667,-204.70941029,0.0001127,2]
[361232940,1747375833704,-950.71482799,0.0001127,2]
[361232941,1747375833716,-6474.67429872,0.0001127,2]
[361232942,1747375833726,-919.116381,0.0001127,2]
[361232943,1747375833736,-151.152192,0.00011272,2]
[361232944,1747375833746,-7630.098537,0.00011272,2]
[361232945,1747375833755,-919.116381,0.00011272,2]
[361232946,1747375833764,-23900.0,0.00011301,2]
[361232947,1747375833774,-500.0,0.00011315,2]
[361232948,1747375833783,-418.79,0.00011412,2]
[361232949,1747375833793,-363.96,0.00011439,2]
[361232950,1747375833803,-1000.0,0.00011442,2]
[361232951,1747375833813,-472.3,0.00011445,2]
[361232952,1747375833824,-172.04,0.00011488,2]
[361232953,1747375833834,-200.0,0.00011498,2]
[361232954,1747375833843,-756.2,0.00011507,2]
[361232955,1747375833853,-250.0,0.0001154,2]
[361232956,1747375833863,-1332.28,0.0001154,2]
[361232957,1747375833873,-7630.098537,0.00011544,2]
[361232958,1747375833882,-919.116381,0.00011544,2]
[361232959,1747375833892,-164.478302,0.00011546,2]
[361232960,1747375833902,-7630.098537,0.00011546,2]
[361232961,1747375833912,-919.116381,0.00011546,2]
[361232962,1747375833922,-640.92,0.00011617,2]
[361232963,1747375833931,-164.86,0.0001163,2]
[361232964,1747375833941,-161.3,0.0001164,2]
[361232965,1747375833950,-150.0,0.00011688,2]
[361232966,1747375833960,-150.0,0.00011688,2]
[361232967,1747375833969,-150.0,0.00011688,2]
[361232968,1747375833978,-150.0,0.00011688,2]
[361232969,1747375833988,-2063.22799371,0.00011768,2]
[361232970,1747375833997,-7630.098537,0.00011818,2]
[361232971,1747375834008,-919.116381,0.00011818,2]
[361232972,1747375834017,-7630.098537,0.0001182,2]
[361232973,1747375834027,-450.04349357,0.0001182,2]
[361232974,1747375834045,-469.07288743,0.0001182,2]
[361232975,1747375834055,-522.22412476,0.000119,2]
[361232976,1747375834064,-1582.32,0.00011905,2]
[361232977,1747375834074,-572.5833128,0.00011987,2]
[361232978,1747375834084,-500.0,0.00012,2]
[361232979,1747375834094,-711.78695095,0.00012053,2]
[361232980,1747375834103,-166.71,0.00012072,2]
[361232981,1747375834113,-420.0,0.00012082,2]
[361232982,1747375834122,-179.51,0.00012087,2]
[361232983,1747375834132,-151.152192,0.00012092,2]
[361232984,1747375834143,-7630.098537,0.00012092,2]
[361232985,1747375834152,-919.116381,0.00012092,2]
[361232986,1747375834162,-1680.0,0.00012093,2]
[361232987,1747375834172,-7630.098537,0.00012094,2]
[361232988,1747375834182,-919.116381,0.00012094,2]
[361232989,1747375834193,-1942.31865729,0.00012236,2]
[361232990,1747375834203,-522.22412457,0.00012245,2]
[361232991,1747375834214,-1100.0,0.000123,4]
[361232992,1747375834224,-150.0,0.00012337,2]
[361232993,1747375834235,-1000.0,0.00012349,2]
[361232994,1747375834245,-207.4,0.00012349,2]
[361232995,1747375834255,-151.0,0.00012349,2]
[361232996,1747375834265,-668.65185757,0.00012349,2]
[361232997,1747375834275,-9469.94610629,0.0001235,2]
[361232998,1747375834285,-10431.81685574,0.0001235,2]
[361232999,1747375834295,-166.71,0.00012358,2]
[361233000,1747375834305,-7630.098537,0.00012368,2]
[361233001,1747375834316,-919.116381,0.00012368,2]
[361233002,1747375834326,-1460.68604669,0.00012371,2]
[361233003,1747375838131,-4802.79945374,0.00012371,2]
[361233004,1747375838141,-184.86,0.00012371,2]
[361233005,1747375838151,-184.86,0.00012375,2]
[361233006,1747375838160,-184.86,0.00012378,2]
[361233007,1747375838170,-184.86,0.00012381,2]
[361233008,1747375838179,-184.86,0.00012384,2]
[361233009,1747375838189,-184.86,0.00012388,2]
[361233010,1747375838198,-132.29801279,0.00012391,2]
[361233011,1747375838211,-52.56198721,0.00012391,2]
[361233012,1747375838220,-184.86,0.00012394,2]
[361233013,1747375838229,-184.86,0.00012397,2]
[361233014,1747375838238,-2300.0,0.000124,4]
[361233015,1747375838248,-184.86,0.00012401,2]
[361233016,1747375838257,-184.86,0.00012404,2]
[361233017,1747375838267,-184.86,0.00012407,2]
[361233018,1747375838277,-184.86,0.0001241,2]
[361233019,1747375838287,-184.86,0.00012414,2]
[361233020,1747375838296,-184.86,0.00012417,2]
[361233021,1747375838306,-184.86,0.0001242,2]
[361233022,1747375838317,-184.86,0.00012423,2]
[361233023,1747375838326,-184.86,0.00012427,2]
[361233024,1747375838337,-184.86,0.0001243,2]
[361233025,1747375838346,-184.86,0.00012433,2]
[361233026,1747375838355,-3500.0,0.000125,4]
[361233027,1747375838365,-522.22412457,0.0001259,2]
[361233028,1747375838375,-4600.0,0.000126,4]
[361233029,1747375838384,-199.21833684,0.000126,2]
[361233030,1747375838395,-7630.098537,0.00012642,2]
[361233031,1747375838405,-919.116381,0.00012642,2]
[361233032,1747375838415,-191.68739529,0.00012663,2]
[361233033,1747375838425,-500.0,0.00012663,2]
[361233034,1747375838436,-188.49246692,0.00012663,2]
[361233035,1747375838445,-244.63468414,0.00012663,2]
[361233036,1747375838455,-955.195,0.00012664,2]
[361233037,1747375838464,-1315.193,0.00012664,2]
[361233038,1747375838473,-799.0,0.00012664,2]
[361233040,1747375838483,-775.857,0.00012664,2]
[361233042,1747375838492,-919.0,0.00012664,2]
[361233043,1747375838501,-166.71,0.0001269,2]
[361233044,1747375838511,-290.83024007,0.00012699,2]
[361233045,1747375838521,-579.174,0.000127,2]
[361233046,1747375838531,-1148.0,0.000127,2]
[361233047,1747375838540,-5941.0,0.000127,2]
[361233048,1747375838549,-5800.0,0.000127,4]
[361233049,1747375838560,-1135.127,0.000127,2]
[361233050,1747375838570,-176.537,0.000127,2]
[361233051,1747375838580,-6825.0,0.000127,2]
[361233052,1747375838589,-154.0,0.000127,2]
[361233053,1747375838599,-165.77018045,0.00012796,2]
[361233054,1747375838608,-1100.0,0.000128,4]
[361233055,1747375838618,-8736.0068,0.00012809,2]
[361233056,1747375838631,-165.77018039,0.00012811,2]
[361233057,1747375838640,-165.77018039,0.00012826,2]
[361233058,1747375838650,-165.77018039,0.00012841,2]
[361233059,1747375838659,-165.77018039,0.00012855,2]
[361233060,1747375838669,-165.77018039,0.0001287,2]
[361233061,1747375838678,-1000.0,0.00012872,2]
[361233062,1747375838687,-500.0,0.00012877,2]
[361233063,1747375838696,-500.0,0.00012877,2]
[361233064,1747375838705,-500.0,0.00012877,2]
[361233065,1747375838715,-299.73593199,0.00012877,2]
[361233066,1747375838724,-500.0,0.00012877,2]
[361233067,1747375838733,-500.0,0.00012877,2]
[361233068,1747375838743,-500.0,0.00012877,2]
[361233069,1747375838752,-500.0,0.00012877,2]
[361233070,1747375838761,-165.77018039,0.00012885,2]
[361233071,1747375838770,-166.71,0.00012887,2]
[361233072,1747375838779,-730.1229,0.00012892,2]
[361233073,1747375838788,-24138.7596,0.00012896,2]
[361233074,1747375838798,-500.0,0.00012896,2]
[361233075,1747375838807,-500.0,0.00012896,2]
[361233076,1747375838816,-200.0,0.00012896,2]
[361233077,1747375838825,-189.50327199,0.00012896,2]
[361233078,1747375838834,-1037.0,0.00012897,2]
[361233079,1747375838843,-693.3919763,0.00012897,2]
[361233080,1747375838852,-174.781,0.00012899,2]
[361233081,1747375839088,-261.31191972,0.000129,2]
[361233082,1747375839114,-1345.1193,0.000129,2]
[361233083,1747375839125,-1100.0,0.000129,4]
[361233084,1747375839135,-187.08023611,0.000129,2]
[361233085,1747375839144,-165.77018039,0.000129,2]
[361233086,1747375839154,-654.43933464,0.000129,2]
[361233087,1747375839163,-572.58331277,0.00012912,2]
[361233088,1747375839173,-164.478302,0.00012916,2]
[361233089,1747375839182,-151.152192,0.00012916,2]
[361233090,1747375839191,-7630.098537,0.00012916,2]
[361233091,1747375839200,-919.116381,0.00012916,2]
[361233092,1747375839209,-913.1831362,0.00012934,2]
[361233093,1747375839219,-522.22412457,0.00012934,2]
[361233094,1747375839228,-2238.0,0.00012959,2]
[361233095,1747375839237,-170.34170089,0.00012973,2]
[361233096,1747375839247,-500.0,0.00012973,2]
[361233097,1747375839257,-502.27405274,0.00012973,2]
[361233098,1747375839267,-169.74844329,0.00012973,2]
[361233099,1747375839277,-500.74484075,0.00012973,2]
[361233100,1747375839287,-500.0,0.00012973,2]
[361233101,1747375839297,-500.0,0.00012973,2]
[361233102,1747375839307,-453.9574658,0.00012973,2]
[361233103,1747375839317,-500.47292402,0.00012973,2]
[361233104,1747375839326,-288.17669469,0.00012973,2]
[361233105,1747375839335,-500.0,0.00012973,2]
[361233106,1747375839345,-500.0,0.00012973,2]
[361233107,1747375839354,-500.0,0.00012973,2]
[361233108,1747375839363,-280.43518902,0.00012973,2]
[361233109,1747375839372,-500.0,0.00012973,2]
[361233110,1747375839381,-166.71,0.00012982,2]
[361233111,1747375839391,-150.0,0.00012986,2]
[361233112,1747375839401,-150.0,0.00012986,2]
[361233113,1747375839410,-150.0,0.00012986,2]
[361233114,1747375839419,-2537.01094893,0.0001299,2]
[361233115,1747375839428,-273.26970523,0.0001299,2]
[361233116,1747375839438,-273.26970523,0.0001299,2]
[361233117,1747375839447,-273.26970523,0.0001299,2]
[361233118,1747375839457,-41951.80799202,0.00012992,2]
[361233119,1747375839467,-1298.4689969,0.00012996,2]
[361233120,1747375839476,-3062.3559641,0.00012996,2]
[361233121,1747375839485,-161512.541161,0.00012996,2]
[361233122,1747375839495,-6055.5181482,0.00012996,2]
[361233123,1747375839504,-43229.1971916,0.00012996,2]
[361233124,1747375839514,-4321.6201444,0.00012996,2]
[361233125,1747375839523,-7630.098537,0.00012997,2]
[361233126,1747375839532,-919.116381,0.00012997,2]
[361233127,1747375839541,-13048.43814952,0.00012998,2]
[361233128,1747375839594,-5786.30309549,0.00012998,2]
[361233129,1747375839606,-101344.12236858,0.00012998,2]
[361233130,1747375839615,-24032.65838727,0.00012998,2]
[361233131,1747375839631,-6036.74016914,0.00012998,2]
[361233132,1747375839642,-419.12053225,0.00012998,2]
[361233133,1747375839654,-775.44461026,0.00012998,2]
[361233134,1747375839679,-254.35520314,0.00012998,2]
[361233135,1747375839702,-1456.2075135,0.00012998,2]
[361233136,1747375839715,-1988.42,0.00012998,2]
[361233140,1747375840296,-875.81996469,0.000127,2]
[361233141,1747375840308,-4.18003531,0.000127,2]
[361233142,1747375840318,-681.91996469,0.00012998,2]
[361233143,1747375840330,-1202.799999,0.00012998,2]
[361233144,1747375840519,-593.26366321,0.00012998,2]
[361233145,1747375840529,-229651.63272642,0.00012998,2]
[361233146,1747375840537,-54531.85783788,0.00012998,2]
[361233147,1747375840546,-7630.098537,0.00012999,2]
[361233148,1747375840555,-919.116381,0.00012999,2]
[361233149,1747375840565,-405191.41783117,0.00013,2]
[361233150,1747375840581,-333.004672,0.00013,2]
[361233151,1747375840592,-342.108,0.00013,2]
[361233152,1747375840694,-999.58975496,0.00013,2]
[361233186,1747375846206,-1000.0,0.00013,2]
[361233187,1747375846218,-1495.00099572,0.00013,2]
[361233188,1747375846364,-2373.40469944,0.00013,2]
[361233189,1747375851898,-164.35497468,0.00012271,2]
[361233190,1747376063520,200.0,0.0002739,120]
[361233192,1747376078268,47500.0,0.0002739,120]
[361233193,1747376086155,150.0,0.00026,120]
[361233194,1747376113566,150.0,0.000125,5]
[361233195,1747376186149,170.0,0.0002739,120]
[361233196,1747376209181,200.0,0.00026,120]
[361233197,1747376237522,200.0,0.00025,30]
[361233198,1747376473923,400.0,0.00027397,120]
[361233199,1747376478706,150.0,0.00011868,7]
[361233208,1747376921388,183.20787647,0.000273,120]
[361233211,1747377031449,-542.468985,0.00010102,2]
[361233212,1747377031462,-968.341015,0.00010102,2]
[361233213,1747377031471,-171.598,0.00010136,2]
[361233214,1747377031481,-300.0,0.00010972,2]
[361233215,1747377031491,-300.0,0.00010972,2]
[361233216,1747377031500,-1200.0,0.00010972,2]
[361233217,1747377031510,-501.58855612,0.00010973,2]
[361233218,1747377031519,-500.47329856,0.00010973,2]
[361233219,1747377031528,-500.0,0.00010973,2]
[361233220,1747377031537,-500.0,0.00010973,2]
[361233221,1747377031547,-500.0,0.00010973,2]
[361233222,1747377031557,-500.0,0.00010973,2]
[361233223,1747377031567,-521.2442789,0.00010999,2]
[361233224,1747377031577,-500.0,0.00010999,2]
[361233225,1747377031587,-271.22136896,0.00010999,2]
[361233226,1747377031596,-1276.55482411,0.00011,2]
[361233227,1747377031606,-473.72461583,0.00011,2]
[361233228,1747377031615,-2331.03327857,0.00011,2]
[361233229,1747377031880,-1399.93190357,0.00011,2]
[361233233,1747377031914,-331.03061184,0.00011,2]
[361233236,1747377031932,-7538.41011593,0.00011,2]
[361233238,1747377031944,-4450.00000001,0.00011,2]
[361233243,1747377031963,-599.99197368,0.00011,2]
[361233246,1747377031975,-372.51000098,0.00011,2]
[361233249,1747377031987,-1878.76102118,0.00011,2]
[361233251,1747377031998,-504.42,0.00011,2]
[361233253,1747377032009,-28610.78303542,0.00011,2]
[361233256,1747377032020,-37761.93075042,0.00011,2]
[361233259,1747377032041,-595.39054192,0.00011,2]
[361233261,1747377032053,-4873.03523845,0.00011,2]
[361233262,1747377032064,-3162.97817904,0.00011,2]
[361233263,1747377032075,-298.695,0.00011,2]
[361233264,1747377032086,-47062.81980937,0.00011,2]
[361233265,1747377032097,-1088.34276687,0.00011,2]